bitfinex/quotes_SOLUSD_20230120
["timestamp","ask_amount","ask_price","bid_price","bid_amount"]
[1674225089126,5.75241746,21.316,21.308,183.34792828]
[1674225089321,5.14461,21.315,21.308,183.34792828]
[1674225089531,35.2,21.314,21.308,183.34792828]
[1674225089784,10.74324031,21.313,21.308,183.34792828]
[1674225090095,10.74324031,21.313,21.308,177.96842828]
[1674225090096,22.14461,21.312,21.308,177.96842828]
[1674225090412,4.04898345,21.31,21.308,169.45812828]
[1674225090590,40.35461,21.309,21.308,169.45812828]
[1674225090804,109.31333903,21.309,21.308,57.50642828]
[1674225091220,55.43756433,21.307,21.275,35.26]
[1674225091431,29.97,21.29,21.276,110.868]
[1674225091661,5.89159431,21.289,21.277,35.26]
[1674225091850,17.0,21.288,21.277,35.26]
[1674225092061,29.97,21.29,21.277,35.26]
[1674225092490,5.10249236,21.298,21.277,35.26]
[1674225092703,30.02,21.3,21.278,10.0]
[1674225092908,28.83121213,21.304,21.279,35.26]
[1674225093119,5.07544262,21.304,21.279,35.26]
[1674225093328,29.83,21.3,21.279,35.26]
[1674225093544,4.6646733,21.299,21.279,35.26]
[1674225093764,4.6646733,21.299,21.28,10.0]
[1674225093972,4.6646733,21.299,21.281,35.25]
[1674225094179,17.0,21.298,21.281,35.25]
[1674225094398,29.83,21.29,21.281,35.25]
[1674225094604,17.0,21.298,21.281,35.25]
[1674225094605,17.0,21.298,21.282,10.0]
[1674225094818,23.03282764,21.298,21.282,10.0]
[1674225095028,23.03282764,21.298,21.283,35.25]
[1674225095341,23.03282764,21.298,21.282,10.0]
[1674225095545,4.35132455,21.297,21.282,10.0]
[1674225095759,17.0,21.296,21.28,10.0]
[1674225095976,29.97,21.29,21.28,10.0]
[1674225096170,23.74288577,21.289,21.28,10.0]
[1674225096584,29.97,21.29,21.28,10.0]
[1674225096795,4.61643091,21.297,21.281,35.25]
[1674225097005,4.61643091,21.297,21.28,10.0]
[1674225097006,17.0,21.296,21.289,192.13775853]
[1674225097244,5.14461,21.295,21.289,192.13775853]
[1674225097437,21.7267572,21.294,21.289,192.13775853]
[1674225097869,7.97922127,21.292,21.289,192.13775853]
[1674225098056,17.0,21.291,21.289,192.13775853]
[1674225099023,10.56027856,21.29,21.289,192.13775853]
[1674225099233,22.41566856,21.29,21.289,192.13775853]
[1674225099437,57.65566856,21.29,21.289,192.13775853]
[1674225099659,22.41566856,21.29,21.289,181.13775853]
[1674225100057,17.0,21.29,21.289,181.13775853]
[1674225100266,22.14461,21.29,21.289,181.13775853]
[1674225100494,5.14461,21.29,21.289,181.13775853]
[1674225101036,20.0,21.293,21.289,181.13775853]
[1674225101433,7.71244131,21.299,21.29,10.0]
[1674225101648,7.71244131,21.299,21.289,181.13775853]
[1674225101857,7.3611609,21.298,21.289,181.13775853]
[1674225102263,5.29240709,21.296,21.289,181.13775853]
[1674225104048,49.50733409,21.295,21.289,181.13775853]
[1674225104257,5.97895157,21.294,21.289,126.73526757]
[1674225104466,17.0,21.293,21.289,126.73526757]
[1674225104692,6.46541162,21.291,21.289,126.73526757]
[1674225104922,49.50733409,21.295,21.289,126.73526757]
[1674225105119,20.0,21.294,21.289,126.73526757]
[1674225105340,6.01700096,21.298,21.289,126.73526757]
[1674225105553,20.0,21.297,21.289,126.73526757]
[1674225105958,30.35,21.3,21.29,35.24]
[1674225106164,30.35,21.3,21.291,10.0]
[1674225106394,7.38959261,21.303,21.292,35.23]
[1674225106597,63.28343291,21.307,21.293,10.0]
[1674225106811,63.28343291,21.307,21.294,35.23]
[1674225107337,55.43756433,21.307,21.294,35.23]
[1674225107953,55.43756433,21.307,21.295,10.0]
[1674225108182,55.43756433,21.307,21.296,35.23]
[1674225108614,55.43756433,21.307,21.297,10.0]
[1674225108797,55.43756433,21.307,21.298,35.22]
[1674225109424,0.00756433,21.307,21.3,10.0]
[1674225109634,30.35,21.32,21.301,52.22]
[1674225109862,30.35,21.32,21.302,10.0]
[1674225110072,5.2819543,21.319,21.303,35.22]
[1674225110270,35.19,21.318,21.301,113.2225]
[1674225110482,29.83,21.31,21.301,113.2225]
[1674225111658,29.83,21.31,21.302,10.0]
[1674225111972,5.14461,21.319,21.306,194.05176686]
[1674225112304,18.61117951,21.319,21.307,35.21]
[1674225112485,44.36272409,21.325,21.308,10.0]
[1674225112700,44.36272409,21.325,21.309,35.21]
[1674225112916,30.08,21.33,21.309,52.21]
[1674225113233,35.16,21.336,21.31,30.07]
[1674225113450,35.16,21.336,21.311,17.0]
[1674225113646,6.82742245,21.337,21.312,10.0]
[1674225113841,29.83,21.35,21.313,52.2]
[1674225114046,7.09594336,21.348,21.313,52.2]
[1674225114274,40.7760402,21.349,21.313,192.9]
[1674225114593,6.17971805,21.348,21.32,30.07]
[1674225114802,6.17971805,21.348,21.321,52.19]
[1674225115216,29.83,21.35,21.321,52.19]
[1674225115546,7.76406392,21.348,21.321,52.19]
[1674225115758,7.76406392,21.348,21.322,10.0]
[1674225115941,81.70338103,21.349,21.323,52.18]
[1674225116147,60.78024398,21.35,21.323,35.18]
[1674225116148,46.56338103,21.347,21.323,35.18]
[1674225116380,4.31234739,21.346,21.323,35.18]
[1674225116584,5.64859239,21.345,21.323,35.18]
[1674225116790,5.75570435,21.343,21.324,10.0]
[1674225116997,5.75570435,21.343,21.325,35.18]
[1674225117222,46.56338103,21.342,21.325,35.18]
[1674225117534,17.0,21.341,21.325,35.18]
[1674225118056,90.92610512,21.342,21.325,35.18]
[1674225118456,6.20345317,21.346,21.326,10.0]
[1674225118681,5.09844923,21.341,21.327,35.18]
[1674225118885,29.97,21.34,21.326,10.0]
[1674225119098,6.86272683,21.339,21.326,10.0]
[1674225119310,17.0,21.338,21.322,113.077]
[1674225119528,29.97,21.33,21.322,113.077]
[1674225119735,17.0,21.329,21.315,35.2]
[1674225120166,21.41495779,21.329,21.315,35.2]
[1674225120379,24.64884457,21.329,21.315,35.2]
[1674225120683,5.23537305,21.328,21.312,123.077]
[1674225120876,52.17,21.329,21.312,123.077]
[1674225120877,29.97,21.32,21.312,113.077]
[1674225121092,21.42023625,21.319,21.303,35.22]
[1674225121300,17.0,21.319,21.307,128.7162]
[1674225121719,17.0,21.319,21.307,118.7162]
[1674225121931,35.19,21.318,21.303,116.1801]
[1674225122251,21.89207092,21.317,21.303,116.1801]
[1674225122458,4.11923936,21.315,21.303,116.1801]
[1674225122670,17.0,21.314,21.303,116.1801]
[1674225122898,35.2,21.313,21.303,116.1801]
[1674225123106,22.95973828,21.312,21.303,116.1801]
[1674225123321,35.2,21.311,21.303,116.1801]
[1674225123625,22.04726227,21.31,21.296,111.6555]
[1674225123836,5.04180816,21.308,21.306,157.80626686]
[1674225124036,52.21,21.307,21.306,157.80626686]
[1674225124442,98.77338103,21.307,21.306,154.85516686]
[1674225124679,108.77338103,21.307,21.306,154.85516686]
[1674225124883,139.72362501,21.307,21.306,150.85886686]
[1674225125717,129.72362501,21.307,21.306,150.85886686]
[1674225126043,83.16024398,21.307,21.306,139.85886686]
[1674225126235,93.16024398,21.307,21.306,139.85886686]
[1674225127306,4.5100871,21.306,21.297,195.24297042]
[1674225127503,7.30236722,21.304,21.297,195.24297042]
[1674225127705,6.47274838,21.302,21.297,195.24297042]
[1674225128131,17.0,21.301,21.297,195.24297042]
[1674225128667,24.25510884,21.303,21.297,195.24297042]
[1674225128863,5.58919093,21.3,21.297,195.24297042]
[1674225129073,17.0,21.299,21.297,195.24297042]
[1674225131181,5.58919093,21.3,21.297,195.24297042]
[1674225132355,5.58919093,21.3,21.297,184.24297042]
[1674225132553,4.92483163,21.298,21.297,184.24297042]
[1674225132775,40.14483163,21.298,21.297,184.24297042]
[1674225132960,117.65845664,21.298,21.297,184.24297042]
[1674225133807,117.65845664,21.298,21.297,180.17287042]
[1674225134014,117.65845664,21.298,21.297,169.17287042]
[1674225134218,122.80306664,21.298,21.297,77.20639537]
[1674225134443,122.80306664,21.298,21.297,27.52069404]
[1674225134660,49.46080667,21.296,21.275,113.6299]
[1674225134863,4.27549916,21.279,21.275,113.6299]
[1674225135072,4.27549916,21.279,21.264,35.28]
[1674225135404,4.27549916,21.279,21.254,148.9299]
[1674225135795,29.97,21.28,21.254,148.9299]
[1674225136250,21.31499884,21.279,21.254,148.9299]
[1674225136444,21.31499884,21.279,21.255,10.0]
[1674225136768,21.31499884,21.279,21.256,35.29]
[1674225136955,52.26,21.279,21.256,35.29]
[1674225137160,5.324931,21.278,21.256,35.29]
[1674225137383,5.324931,21.278,21.257,10.0]
[1674225137384,17.0,21.277,21.257,10.0]
[1674225137597,17.0,21.277,21.258,35.29]
[1674225138331,29.97,21.28,21.259,10.0]
[1674225138545,5.78951002,21.279,21.26,35.29]
[1674225139179,29.83,21.29,21.261,10.0]
[1674225139392,6.36865482,21.289,21.262,35.28]
[1674225139696,6.36865482,21.289,21.263,17.0]
[1674225139915,6.36865482,21.289,21.264,35.28]
[1674225140137,29.83,21.29,21.266,10.0]
[1674225140352,5.54278866,21.294,21.267,52.27]
[1674225140565,5.54278866,21.294,21.267,161.2935]
[1674225140968,5.54278866,21.294,21.267,144.2935]
[1674225141178,35.23,21.295,21.267,144.2935]
[1674225141179,30.08,21.29,21.268,10.0]
[1674225141391,6.14426518,21.289,21.269,35.27]
[1674225141717,6.06025529,21.295,21.269,35.27]
[1674225141928,6.36941607,21.289,21.269,35.27]
[1674225142134,6.36941607,21.289,21.279,207.36773693]
[1674225142535,4.79726891,21.288,21.279,207.36773693]
[1674225142859,7.77478557,21.286,21.279,207.36773693]
[1674225143275,5.00170897,21.289,21.279,207.36773693]
[1674225143484,70.34095722,21.295,21.279,207.36773693]
[1674225143485,42.25728691,21.295,21.279,207.36773693]
[1674225143695,4.40462436,21.295,21.279,207.36773693]
[1674225143905,5.27320455,21.295,21.28,35.25]
[1674225144116,5.27320455,21.295,21.281,10.0]
[1674225144339,28.0,21.29,21.279,207.36773693]
[1674225144555,4.00424254,21.288,21.279,207.36773693]
[1674225144762,6.53931655,21.286,21.279,207.36773693]
[1674225145486,17.0,21.285,21.279,207.36773693]
[1674225145696,4.56438835,21.286,21.279,207.36773693]
[1674225145907,28.0,21.29,21.279,207.36773693]
[1674225146240,7.82653858,21.295,21.28,10.0]
[1674225146851,7.82653858,21.295,21.281,35.25]
[1674225147064,7.82653858,21.295,21.282,10.0]
[1674225147267,7.82653858,21.295,21.283,35.25]
[1674225147482,7.82653858,21.295,21.282,10.0]
[1674225147483,28.13,21.29,21.282,10.0]
[1674225147800,6.5039793,21.289,21.28,10.0]
[1674225148000,42.25728691,21.295,21.28,45.25]
[1674225148210,4.79328674,21.295,21.28,45.25]
[1674225149057,28.13,21.29,21.279,207.36773693]
[1674225149281,5.2993743,21.289,21.279,207.36773693]
[1674225149807,7.21802797,21.288,21.279,207.36773693]
[1674225150025,17.0,21.287,21.279,207.36773693]
[1674225150535,6.98264128,21.285,21.279,207.36773693]
[1674225150745,17.0,21.284,21.279,207.36773693]
[1674225151582,4.67507519,21.283,21.279,207.36773693]
[1674225151787,17.0,21.282,21.279,207.36773693]
[1674225152030,7.30771563,21.289,21.279,207.36773693]
[1674225153394,17.0,21.288,21.279,207.36773693]
[1674225153916,17.0,21.288,21.28,10.0]
[1674225154130,7.66687843,21.295,21.28,10.0]
[1674225154323,7.66687843,21.295,21.281,35.25]
[1674225154533,28.09,21.3,21.281,35.25]
[1674225154741,28.08367031,21.304,21.281,35.25]
[1674225154970,67.54969823,21.31,21.282,10.0]
[1674225155158,67.54969823,21.31,21.283,35.25]
[1674225155588,6.77889602,21.309,21.284,27.0]
[1674225155799,4.04238883,21.318,21.285,35.25]
[1674225156014,35.19,21.317,21.286,17.0]
[1674225156228,7.59899995,21.316,21.287,35.24]
[1674225156422,7.59899995,21.316,21.288,17.0]
[1674225156749,5.5072439,21.318,21.29,28.13]
[1674225156952,6.94098483,21.319,21.291,52.24]
[1674225157160,6.94098483,21.319,21.305,200.83165162]
[1674225157591,4.18102347,21.317,21.305,200.83165162]
[1674225157909,7.87969399,21.315,21.305,200.83165162]
[1674225158304,44.31256199,21.314,21.305,200.83165162]
[1674225158515,7.00655275,21.309,21.305,200.83165162]
[1674225158834,5.74448873,21.312,21.305,200.83165162]
[1674225159365,17.0,21.311,21.305,200.83165162]
[1674225159989,6.62068576,21.309,21.305,200.83165162]
[1674225160208,5.41524093,21.307,21.305,200.83165162]
[1674225160624,17.0,21.306,21.305,200.83165162]
[1674225161046,35.19,21.317,21.305,200.83165162]
[1674225161275,5.5992393,21.316,21.305,200.83165162]
[1674225162520,5.01600871,21.314,21.305,200.83165162]
[1674225162732,17.0,21.313,21.305,200.83165162]
[1674225162944,7.76712507,21.309,21.305,200.83165162]
[1674225163154,52.21,21.308,21.305,195.97575162]
[1674225163372,7.17393805,21.307,21.305,195.97575162]
[1674225163568,17.0,21.306,21.305,195.97575162]
[1674225164224,17.0,21.306,21.305,184.97575162]
[1674225168407,17.0,21.306,21.305,173.97575162]
[1674225168945,52.21,21.306,21.305,173.97575162]
[1674225170004,96.52256199,21.306,21.305,173.97575162]
[1674225170840,106.52256199,21.306,21.305,173.97575162]
[1674225171161,96.52256199,21.306,21.305,173.97575162]
[1674225171365,79.52256199,21.306,21.305,173.97575162]
[1674225171575,29.82,21.31,21.305,173.97575162]
[1674225171576,5.38442949,21.309,21.305,173.97575162]
[1674225171980,4.42236236,21.308,21.305,173.97575162]
[1674225172316,4.42236236,21.308,21.3,203.89698019]
[1674225172728,17.0,21.307,21.3,203.89698019]
[1674225172933,4.19615084,21.305,21.3,203.89698019]
[1674225173148,4.9194225,21.303,21.3,203.89698019]
[1674225173356,52.22,21.302,21.3,192.89698019]
[1674225173558,7.13438082,21.301,21.3,192.89698019]
[1674225173768,42.35438082,21.301,21.3,192.89698019]
[1674225174191,128.92422972,21.301,21.3,116.70983688]
[1674225174402,162.15251003,21.301,21.3,116.70983688]
[1674225174616,162.15251003,21.301,21.3,12.73802572]
[1674225174811,27.26197428,21.3,21.276,113.0545]
[1674225175032,6.43523861,21.289,21.276,113.0545]
[1674225175246,7.04842773,21.288,21.276,113.0545]
[1674225175662,17.0,21.287,21.264,35.28]
[1674225175873,30.09,21.28,21.265,113.0545]
[1674225176083,24.01692899,21.279,21.265,123.0545]
[1674225176498,6.17666846,21.278,21.265,123.0545]
[1674225176705,17.0,21.277,21.265,113.0545]
[1674225177141,29.9,21.29,21.265,113.0545]
[1674225177466,4.15460437,21.285,21.266,35.28]
[1674225177688,4.15460437,21.285,21.266,45.28]
[1674225178074,4.15460437,21.285,21.267,10.0]
[1674225178287,35.24,21.289,21.268,35.27]
[1674225178510,4.69108692,21.288,21.268,35.27]
[1674225178924,35.24,21.289,21.268,35.27]
[1674225178925,35.24,21.287,21.268,35.27]
[1674225179138,7.3761228,21.286,21.267,10.0]
[1674225179348,14.04439473,21.284,21.267,10.0]
[1674225179554,23.73361437,21.283,21.267,10.0]
[1674225179880,30.09,21.28,21.265,113.0545]
[1674225180078,24.3396381,21.279,21.265,113.0545]
[1674225180620,7.3396381,21.279,21.265,113.0545]
[1674225181448,7.94960099,21.277,21.265,113.0545]
[1674225181655,30.09,21.28,21.265,113.0545]
[1674225181656,4.44701372,21.275,21.265,113.0545]
[1674225181867,17.0,21.274,21.265,113.0545]
[1674225182092,17.0,21.274,21.265,112.0545]
[1674225182491,22.92434043,21.276,21.265,112.0545]
[1674225182806,17.06849107,21.274,21.265,112.0545]
[1674225183037,21.29270565,21.273,21.265,112.0545]
[1674225183876,35.26,21.279,21.265,112.0545]
[1674225184081,5.56013634,21.278,21.265,112.0545]
[1674225184502,5.56013634,21.278,21.256,35.29]
[1674225184715,5.56013634,21.278,21.257,10.0]
[1674225184923,5.56013634,21.278,21.258,35.29]
[1674225185466,6.04028245,21.276,21.257,10.0]
[1674225185669,4.63863618,21.278,21.257,10.0]
[1674225185988,6.71013082,21.276,21.257,10.0]
[1674225186180,35.26,21.279,21.258,35.29]
[1674225186389,4.92815778,21.278,21.258,35.29]
[1674225186594,7.29468874,21.28,21.26,10.0]
[1674225186800,4.98295585,21.287,21.261,52.28]
[1674225187224,44.26199896,21.287,21.274,209.18584827]
[1674225187435,44.26199896,21.287,21.275,35.26]
[1674225187652,35.22,21.299,21.276,10.0]
[1674225187860,7.36786294,21.295,21.277,147.3966]
[1674225188066,35.23,21.295,21.277,112.1366]
[1674225188281,30.06,21.29,21.274,326.53204827]
[1674225188482,4.48059775,21.289,21.274,326.53204827]
[1674225188821,115.93502285,21.289,21.274,326.53204827]
[1674225189132,7.01892686,21.287,21.274,209.18584827]
[1674225189341,17.0,21.286,21.274,209.18584827]
[1674225189530,90.67773594,21.286,21.274,209.18584827]
[1674225189742,5.71046587,21.285,21.274,209.18584827]
[1674225190391,6.99086257,21.292,21.275,35.26]
[1674225190595,6.99086257,21.292,21.276,10.0]
[1674225191009,73.67773594,21.292,21.276,10.0]
[1674225191230,6.68995545,21.291,21.276,10.0]
[1674225191656,4.2527018,21.289,21.276,10.0]
[1674225192477,5.76708979,21.298,21.278,10.0]
[1674225192682,35.18282677,21.298,21.279,35.26]
[1674225192897,4.24895921,21.296,21.277,35.26]
[1674225193121,4.97383735,21.289,21.276,111.1921]
[1674225193547,103.51928587,21.288,21.276,111.1921]
[1674225193752,7.22309816,21.287,21.276,111.1921]
[1674225193974,17.0,21.286,21.276,111.1921]
[1674225194806,61.26199896,21.286,21.276,111.1921]
[1674225195017,21.29832921,21.285,21.276,111.1921]
[1674225196172,7.40843877,21.284,21.276,111.1921]
[1674225196382,17.0,21.283,21.274,209.18584827]
[1674225196596,7.20170748,21.279,21.274,209.18584827]
[1674225196795,17.0,21.278,21.274,209.18584827]
[1674225197335,7.34025623,21.277,21.274,209.18584827]
[1674225197548,17.0,21.276,21.274,209.18584827]
[1674225198265,7.18872336,21.275,21.274,209.18584827]
[1674225198477,24.18872336,21.275,21.274,209.18584827]
[1674225199011,68.45072232,21.275,21.274,209.18584827]
[1674225199420,116.80544256,21.275,21.274,209.18584827]
[1674225201333,99.80544256,21.275,21.274,209.18584827]
[1674225201543,7.99142428,21.278,21.274,209.18584827]
[1674225201959,7.29012904,21.277,21.274,209.18584827]
[1674225202272,7.29012904,21.277,21.27,204.3031794]
[1674225202464,5.55004898,21.28,21.271,10.0]
[1674225203116,35.61004898,21.28,21.27,204.3031794]
[1674225203318,6.08229443,21.278,21.27,204.3031794]
[1674225204248,32.12166098,21.279,21.27,204.3031794]
[1674225204457,65.36,21.29,21.271,10.0]
[1674225204458,7.47021533,21.284,21.271,10.0]
[1674225204672,120.72,21.3,21.271,10.0]
[1674225204673,32.12166098,21.287,21.272,35.27]
[1674225204894,4.49633711,21.289,21.272,35.27]
[1674225205525,4.49633711,21.289,21.273,121.5615]
[1674225205747,4.49633711,21.289,21.274,35.26]
[1674225206159,4.49633711,21.289,21.273,121.5615]
[1674225206380,48.35472024,21.289,21.273,121.5615]
[1674225206599,21.02814333,21.288,21.273,121.5615]
[1674225206785,4.02814333,21.288,21.273,121.5615]
[1674225206996,4.4922,21.318,21.274,35.26]
[1674225207211,4.29559192,21.299,21.274,35.26]
[1674225207436,29.33966098,21.299,21.275,10.0]
[1674225207749,6.5440631,21.297,21.276,35.26]
[1674225208062,77.69438122,21.296,21.276,35.26]
[1674225208278,6.33396183,21.295,21.276,35.26]
[1674225208485,24.94342331,21.294,21.277,10.0]
[1674225208797,6.64815555,21.293,21.278,35.26]
[1674225209008,6.14479417,21.292,21.277,10.0]
[1674225209198,48.35472024,21.292,21.277,10.0]
[1674225209410,5.84917315,21.291,21.277,10.0]
[1674225209625,6.26856294,21.29,21.277,10.0]
[1674225209844,6.2733955,21.289,21.277,10.0]
[1674225210059,17.0,21.288,21.277,10.0]
[1674225211429,5.25485359,21.298,21.278,35.26]
[1674225212487,5.25485359,21.298,21.279,10.0]
[1674225212676,5.25485359,21.298,21.28,35.25]
[1674225213418,6.23507434,21.303,21.281,10.0]
[1674225213632,6.23507434,21.303,21.282,35.25]
[1674225214048,6.60024626,21.305,21.283,10.0]
[1674225214257,6.60024626,21.305,21.285,10.0]
[1674225214258,48.35472024,21.304,21.285,10.0]
[1674225214449,6.60024626,21.305,21.286,35.24]
[1674225214664,4.77170263,21.309,21.286,35.24]
[1674225215092,4.36445654,21.305,21.286,35.24]
[1674225215412,28.03,21.3,21.286,35.24]
[1674225215624,35.86880795,21.3,21.286,35.24]
[1674225216053,17.0,21.299,21.287,10.0]
[1674225216448,17.0,21.299,21.288,35.24]
[1674225216870,17.0,21.299,21.287,10.0]
[1674225217299,71.41854378,21.299,21.293,201.90103042]
[1674225217514,5.85289611,21.298,21.293,201.90103042]
[1674225217728,52.23,21.297,21.293,201.90103042]
[1674225217950,5.49238794,21.296,21.293,201.90103042]
[1674225218271,6.4136318,21.294,21.293,201.90103042]
[1674225218581,71.76835204,21.294,21.293,190.90103042]
[1674225218800,136.33801302,21.294,21.293,190.90103042]
[1674225219212,180.60001198,21.294,21.293,190.90103042]
[1674225219620,180.60001198,21.294,21.293,186.68083042]
[1674225220244,185.74462198,21.294,21.293,164.68083042]
[1674225220462,185.74462198,21.294,21.293,41.51596686]
[1674225221408,7.46801461,21.288,21.264,35.28]
[1674225221609,7.64539576,21.279,21.265,119.8512]
[1674225222374,6.25095484,21.278,21.265,119.8512]
[1674225222563,17.0,21.277,21.265,119.8512]
[1674225222993,50.30552765,21.277,21.265,119.8512]
[1674225223200,6.01417898,21.276,21.258,35.29]
[1674225223419,4.13310223,21.269,21.259,116.9327]
[1674225223731,17.0,21.268,21.259,116.9327]
[1674225224977,17.0,21.268,21.257,10.0]
[1674225225192,23.36356271,21.269,21.255,10.0]
[1674225226258,23.36356271,21.269,21.253,31.3451]
[1674225226573,23.36356271,21.269,21.252,118.1241]
[1674225226574,35.27,21.268,21.252,118.1241]
[1674225226771,5.08933654,21.259,21.252,118.1241]
[1674225226977,28.1,21.26,21.245,35.31]
[1674225227187,28.1,21.26,21.246,10.0]
[1674225227520,6.55333181,21.267,21.247,35.31]
[1674225227725,6.55333181,21.267,21.248,10.0]
[1674225228041,33.30552765,21.268,21.249,52.3]
[1674225228234,397.4,21.27,21.25,10.0]
[1674225228444,397.4,21.27,21.251,52.3]
[1674225228671,4.04218789,21.274,21.251,52.3]
[1674225228882,4.04218789,21.274,21.253,10.0]
[1674225229073,4.04218789,21.274,21.254,35.3]
[1674225229283,4.04218789,21.274,21.254,144.4328]
[1674225229732,4.04218789,21.274,21.255,10.0]
[1674225230040,4.04218789,21.274,21.256,35.29]
[1674225230243,4.04218789,21.274,21.257,10.0]
[1674225230445,6.81288548,21.273,21.257,10.0]
[1674225230855,28.07,21.27,21.254,144.4328]
[1674225231085,4.03189521,21.268,21.254,109.1328]
[1674225231311,6.46397848,21.266,21.254,109.1328]
[1674225231488,17.0,21.265,21.254,109.1328]
[1674225231928,17.0,21.267,21.254,109.1328]
[1674225232119,17.0,21.267,21.255,10.0]
[1674225232338,7.46938696,21.276,21.261,203.93048074]
[1674225232973,7.19946475,21.274,21.261,203.93048074]
[1674225233292,44.68083114,21.281,21.262,45.28]
[1674225233508,33.30552765,21.279,21.262,45.28]
[1674225233722,7.56758693,21.278,21.262,45.28]
[1674225234229,55.92230717,21.278,21.262,45.28]
[1674225234440,5.37662756,21.277,21.262,45.28]
[1674225234859,27.97,21.27,21.261,203.93048074]
[1674225235079,52.27,21.269,21.261,203.93048074]
[1674225235407,37.97085297,21.268,21.261,203.93048074]
[1674225235590,6.08273615,21.266,21.261,203.93048074]
[1674225235797,17.0,21.265,21.261,203.93048074]
[1674225236114,75.92805358,21.265,21.261,203.93048074]
[1674225237288,17.0,21.265,21.261,203.93048074]
[1674225238241,4.64180385,21.264,21.261,203.93048074]
[1674225238437,17.0,21.263,21.261,203.93048074]
[1674225238862,75.92805358,21.263,21.261,203.93048074]
[1674225239062,6.36336017,21.262,21.261,203.93048074]
[1674225239271,23.36336017,21.262,21.261,203.93048074]
[1674225239585,58.92805358,21.262,21.261,203.93048074]
[1674225239802,51.14966394,21.262,21.261,203.93048074]
[1674225240012,65.38382327,21.267,21.261,203.93048074]
[1674225240215,7.34651953,21.266,21.261,203.93048074]
[1674225240426,58.49618347,21.266,21.261,203.93048074]
[1674225240641,6.60829706,21.264,21.261,203.93048074]
[1674225241182,17.0,21.263,21.261,203.93048074]
[1674225241796,4.54813726,21.262,21.261,203.93048074]
[1674225242006,17.0,21.262,21.261,203.93048074]
[1674225242443,6.12001261,21.266,21.261,203.93048074]
[1674225242661,58.92805358,21.269,21.261,203.93048074]
[1674225242849,65.0030151,21.269,21.261,203.93048074]
[1674225243065,6.07496152,21.269,21.262,10.0]
[1674225243474,5.46256064,21.273,21.262,10.0]
[1674225244014,51.14966394,21.274,21.262,10.0]
[1674225244223,51.14966394,21.274,21.263,35.28]
[1674225244417,33.30552765,21.275,21.263,35.28]
[1674225244837,2.765e-05,21.275,21.263,35.28]
[1674225245068,4.67205155,21.285,21.264,10.0]
[1674225245259,4.67205155,21.285,21.265,35.28]
[1674225245260,35.09110253,21.285,21.265,35.28]
[1674225245467,6.2131114,21.284,21.266,10.0]
[1674225245677,6.2131114,21.284,21.267,35.27]
[1674225245889,6.2131114,21.284,21.268,10.0]
[1674225246764,28.1,21.28,21.268,10.0]
[1674225246945,5.42642676,21.279,21.268,10.0]
[1674225247153,51.09562242,21.279,21.268,10.0]
[1674225247360,86.35562242,21.278,21.273,197.28586327]
[1674225247588,23.15496504,21.277,21.273,197.28586327]
[1674225247798,4.86656344,21.275,21.273,197.28586327]
[1674225248008,52.26,21.274,21.273,197.28586327]
[1674225248214,103.35562242,21.274,21.273,197.28586327]
[1674225249066,147.69462647,21.274,21.273,197.28586327]
[1674225250845,112.43462647,21.274,21.273,197.28586327]
[1674225251048,130.69462647,21.274,21.273,197.28586327]
[1674225251264,51.09562242,21.274,21.273,197.28586327]
[1674225251890,86.35562242,21.274,21.273,197.28586327]
[1674225252102,130.7457598,21.274,21.273,197.28586327]
[1674225252327,130.7457598,21.274,21.273,190.14026327]
[1674225252512,147.7457598,21.274,21.273,190.14026327]
[1674225252945,147.7457598,21.274,21.273,188.32556327]
[1674225253141,178.16481078,21.274,21.273,188.32556327]
[1674225254411,188.16481078,21.274,21.273,188.32556327]